bitfinex-derivatives/quotes_ETHF0:USTF0_20260102
["timestamp","ask_amount","ask_price","bid_price","bid_amount"]
[1767372883061,0.3198,3121.8,3120.0,1.21680545]
[1767372883267,0.3198,3121.8,3120.2,3.204]
[1767372884159,0.3198,3121.8,3120.3,4.358]
[1767372884655,0.3198,3121.8,3120.4,4.47159271]
[1767372885364,0.3198,3121.8,3120.6,0.2092671]
[1767372885770,0.3198,3121.8,3120.7,4.36]
[1767372886770,0.3198,3121.8,3120.6,0.2092671]
[1767372886966,0.3198,3121.8,3120.5,4.52031]
[1767372887368,0.3198,3121.8,3120.6,0.2092671]
[1767372887668,0.16019,3123.0,3120.9,1.42607255]
[1767372888463,0.16019,3123.0,3120.9,1.58636255]
[1767372888773,0.00480692,3122.3,3121.6,0.00480692]
[1767372888973,0.00480692,3122.3,3121.6,0.00872294]
[1767372889272,0.00225159,3123.3,3121.6,0.00872294]
[1767372889572,0.00225159,3123.3,3121.6,0.37825004]
[1767372890273,0.00480692,3122.8,3121.7,4.13853245]
[1767372890659,0.00480692,3122.8,3121.6,0.16898294]
[1767372890960,0.00480692,3122.8,3121.6,0.00872294]
[1767372891159,0.21398675,3122.8,3121.6,0.00872294]
[1767372891671,0.00480692,3122.8,3121.6,0.00872294]
[1767372892767,0.00480692,3122.8,3121.6,0.21799004]
[1767372892973,0.00225159,3123.3,3121.8,0.2092671]
[1767372893268,0.00225159,3123.3,3121.9,4.09958894]
[1767372893474,0.00225159,3123.3,3122.0,0.2092671]
[1767372893673,0.00225159,3123.3,3122.1,4.359]
[1767372893868,0.00480692,3123.0,3122.1,8.45858894]
[1767372894668,0.00225159,3123.3,3122.1,8.66785604]
[1767372895469,0.00480692,3123.0,3122.1,8.66785604]
[1767372895867,0.00480692,3123.0,3122.1,4.30885604]
[1767372896072,0.00480692,3123.0,3122.2,4.365]
[1767372896268,0.00225159,3123.3,3122.2,4.365]
[1767372897070,0.36928983,3124.4,3122.4,0.3694871]
[1767372897268,0.36928983,3124.4,3122.5,0.2092671]
[1767372897572,0.00480692,3123.7,3122.5,4.50836995]
[1767372897773,0.16008,3125.0,3122.7,0.2092671]
[1767372897774,10.336,3124.8,3122.7,0.2092671]
[1767372897975,0.36925983,3125.0,3122.7,0.2092671]
[1767372898165,0.0032341,3124.8,3122.8,4.09325263]
[1767372898770,0.00318614,3124.1,3123.5,0.00480692]
[1767372899972,0.0032341,3124.8,3123.5,0.00480692]
[1767372900171,0.0032341,3124.8,3123.6,4.22551103]
[1767372900371,0.0032341,3124.8,3123.7,4.366]
[1767372900571,0.0032341,3124.8,3123.8,4.366]
[1767372900779,0.0032341,3124.8,3123.8,4.36925134]
[1767372901674,0.21849796,3125.3,3123.8,4.36925134]
[1767372901872,0.16002,3126.2,3124.0,0.20860728]
[1767372902071,0.21849796,3126.6,3124.5,0.36871728]
[1767372902380,0.21849796,3126.4,3124.5,4.367]
[1767372902672,0.2213396,3126.4,3124.5,4.367]
[1767372903272,0.2213396,3126.4,3125.1,0.00479885]
[1767372903475,0.00477193,3125.8,3125.1,0.00479885]
[1767372903780,0.00284164,3126.4,3125.1,0.00479885]
[1767372904978,0.2213396,3126.4,3125.1,0.00479885]
[1767372905277,0.37851796,3126.3,3125.1,0.00479885]
[1767372905578,0.21849796,3126.2,3125.1,0.00479885]
[1767372907075,0.21849796,3125.8,3123.8,0.21185862]
[1767372907378,0.21849796,3125.6,3123.8,0.00325134]
[1767372907879,0.37854796,3125.6,3123.8,0.00325134]
[1767372908081,0.00479885,3125.0,3124.4,0.00479885]
[1767372910275,10.55449796,3126.0,3124.4,0.00479885]
[1767372910476,0.37853796,3125.9,3124.4,0.00479885]
[1767372910677,0.37854796,3125.7,3124.4,0.00479885]
[1767372910876,0.21849796,3125.5,3124.4,0.00479885]
[1767372912081,0.37855796,3125.5,3124.4,0.00479885]
[1767372912280,0.37856796,3125.3,3124.4,0.00479885]
[1767372912676,0.37856796,3125.3,3123.8,0.00325134]
[1767372912677,0.21849796,3125.3,3123.8,0.00325134]
[1767372912882,0.37857796,3125.2,3123.8,0.00325134]
[1767372913284,0.21849796,3125.7,3123.8,0.21185862]
[1767372913491,0.16004,3125.9,3124.0,0.20860728]
[1767372913678,0.21849796,3126.2,3124.6,0.00479885]
[1767372914583,0.21849796,3126.2,3124.7,4.181161]
[1767372915087,0.00284164,3126.4,3125.1,0.16008]
[1767372915484,0.00284164,3126.4,3125.2,0.16007]
[1767372916285,0.00284164,3126.4,3125.0,4.1931687]
[1767372916494,0.00284164,3126.4,3124.6,0.21340613]
[1767372916694,0.00284164,3126.4,3124.6,0.37350613]
[1767372916897,0.00284164,3126.4,3124.7,4.42073451]
[1767372917192,0.00284164,3126.4,3124.6,0.16489885]
[1767372917380,0.00284164,3126.4,3124.6,0.21340613]
[1767372917588,0.00284164,3126.4,3125.0,0.36868728]
[1767372917988,0.00284164,3126.4,3125.1,4.41230133]
[1767372919292,0.15997,3127.2,3125.2,0.36867728]
[1767372919497,0.15997,3127.2,3125.1,4.25222133]
[1767372919498,0.21849796,3127.5,3125.4,0.36866728]
[1767372919790,0.21849796,3127.5,3125.5,4.19771425]
[1767372919994,0.21849796,3127.5,3126.2,0.00479885]
[1767372920387,0.21849796,3127.2,3126.2,0.008866]
[1767372921791,0.15997,3127.3,3126.2,0.008866]
[1767372922192,1.21680545,3126.3,3124.3,0.20860728]
[1767372922388,0.21849796,3126.5,3124.5,0.36871728]
[1767372922591,0.21849796,3126.9,3124.8,0.36869728]
[1767372922788,0.21849796,3126.9,3124.8,3.77769728]
[1767372922998,0.21849796,3126.7,3124.8,0.20860728]
[1767372923195,0.00479885,3126.1,3125.4,0.00479885]
[1767372927700,0.00479885,3126.1,3124.8,0.00399216]
[1767372927993,0.23028199,3126.1,3124.8,0.00399216]
[1767372928392,0.38551314,3126.0,3124.8,0.00399216]
[1767372928704,0.38551314,3126.0,3125.1,0.00479885]
[1767372929095,0.22548314,3125.9,3124.8,0.00399216]
[1767372929400,0.21730594,3125.7,3123.5,0.16016]
[1767372929587,0.16006,3125.5,3123.5,0.16016]
[1767372929793,0.21730594,3125.4,3123.5,0.16016]
[1767372930093,0.21730594,3125.9,3124.1,0.00479885]
[1767372930294,0.21730594,3125.9,3124.1,0.00839786]
[1767372932592,0.16482885,3126.1,3124.2,0.20541897]
[1767372933094,0.16482885,3126.1,3124.3,0.16012]
[1767372933401,0.16482885,3126.1,3124.3,4.51241179]
[1767372933591,0.00479885,3126.1,3124.4,0.20541897]
[1767372933795,0.00479885,3126.1,3124.6,0.36551897]
[1767372936008,0.00479885,3126.1,3124.7,4.20910687]
[1767372936205,0.00479885,3126.1,3124.6,0.20541897]
[1767372936411,0.00479885,3126.1,3124.7,4.365]
[1767372937601,0.00479885,3126.1,3124.6,0.1601]
[1767372937993,0.00479885,3126.1,3124.7,4.33731185]
[1767372939593,0.00479885,3126.1,3124.7,0.20541897]
[1767372940392,0.00479885,3126.1,3124.6,0.1601]
[1767372941096,0.00479885,3126.1,3124.4,4.365]
[1767372941297,0.00479885,3126.1,3124.7,4.43018886]
[1767372941500,0.00479885,3126.1,3124.7,0.36551897]
[1767372941799,0.00479885,3126.1,3124.7,4.73051897]
[1767372942000,0.00479885,3126.1,3124.7,0.1601]
[1767372943506,0.00479885,3126.1,3124.8,0.36550897]
[1767372944201,0.00479885,3126.1,3124.8,0.16009]
[1767372947608,0.3195,3126.0,3124.8,0.16009]
[1767372947901,0.3195,3126.0,3124.6,4.364]
[1767372949498,0.53680594,3126.0,3124.3,0.20541897]
[1767372949805,0.53680594,3126.0,3124.1,0.37394683]
[1767372949806,0.21730594,3125.9,3124.1,0.37394683]
[1767372951205,0.21730594,3125.7,3124.1,0.00839786]
[1767372951408,0.21730594,3124.9,3123.2,2.77564337]
[1767372951702,0.21730594,3124.9,3123.1,4.1082233]
[1767372951907,0.21730594,3124.9,3123.1,0.20541897]
[1767372952610,0.00479885,3124.3,3123.7,0.00479885]
[1767372952806,0.00310811,3124.9,3123.7,0.00479885]
[1767372953113,0.00310811,3124.9,3123.7,0.21021782]
[1767372953807,0.00479885,3124.6,3123.7,0.21021782]
[1767372955108,0.00310811,3124.9,3123.7,0.37036782]
[1767372955412,0.00310811,3124.9,3123.8,0.20541897]
[1767372955909,0.21730594,3125.9,3124.0,0.36554897]
[1767372956114,0.00479885,3125.3,3124.1,0.20541897]
[1767372957006,0.00893209,3125.3,3124.2,4.4136513]
[1767372957212,0.3195,3126.0,3124.4,0.36552897]
[1767372957411,0.3195,3126.0,3124.5,4.372]
[1767372958208,0.00479885,3125.6,3124.5,4.372]
[1767372958807,0.00479885,3125.6,3124.5,4.57741897]
[1767372959716,0.00479885,3125.6,3124.6,4.51157774]
[1767372960415,0.32331589,3126.0,3124.6,4.51157774]
[1767372960809,0.32331589,3126.0,3124.7,0.2104517]
[1767372961109,0.09259974,3126.0,3124.9,0.16009]
[1767372961517,0.09259974,3126.0,3125.0,0.16008]
[1767372961818,0.00381589,3126.0,3125.0,0.16008]
[1767372962816,0.00381589,3126.0,3124.7,2.77564337]
[1767372963115,0.00381589,3126.0,3124.8,4.382]
[1767372963316,0.22865768,3126.0,3124.6,0.1601]
[1767372963516,0.22865768,3126.0,3124.6,4.382]
[1767372964311,0.22865768,3126.0,3124.6,4.5421]
[1767372965011,0.22865768,3126.0,3124.7,4.382]
[1767372965217,0.31364179,3125.9,3124.7,4.382]
[1767372965918,0.22484179,3125.8,3124.3,4.382]
[1767372966819,0.22484179,3126.8,3125.3,0.16007]
[1767372967010,0.22484179,3126.8,3125.7,0.00479885]
[1767372967820,0.22850538,3126.8,3125.7,0.00774467]
[1767372969319,0.00366359,3126.8,3125.7,0.00774467]
[1767372970617,0.22850538,3126.8,3125.7,0.16779467]
[1767372970919,0.22850538,3126.8,3125.7,0.00774467]
[1767372974314,0.22484179,3126.4,3124.9,2.77564337]
[1767372974529,0.22484179,3126.4,3124.7,2.77564337]
[1767372974720,0.22484179,3126.4,3124.6,2.77564337]
[1767372975324,0.00479885,3125.8,3125.2,0.00479885]
[1767372976325,0.22964064,3125.8,3125.2,0.00479885]
[1767372976830,0.22964064,3125.8,3124.6,0.00377749]
[1767372977331,0.22484179,3125.4,3123.6,1.30030667]
[1767372977928,0.22484179,3125.4,3124.2,0.00479885]
[1767372978120,0.38490179,3125.4,3124.2,0.00479885]
[1767372978326,0.22484179,3125.3,3124.2,0.00875139]
[1767372980328,0.22484179,3125.1,3124.2,0.00875139]
[1767372980525,0.22484179,3124.9,3123.0,3.2]
[1767372980822,0.22484179,3124.6,3122.6,7.15664337]
[1767372981034,0.22484179,3124.6,3122.6,4.381]
[1767372981324,0.22484179,3124.2,3122.5,4.19139261]
[1767372981532,0.00479885,3123.7,3123.0,0.00479885]
[1767372982126,0.00295339,3124.2,3123.0,0.00479885]
[1767372983933,0.22779518,3124.2,3123.0,0.00479885]
[1767372984329,0.00479885,3123.9,3123.0,0.00479885]
[1767372987127,0.23247211,3124.7,3123.1,4.40186396]
[1767372988240,0.23593087,3124.7,3123.1,4.40186396]
[1767372988940,0.23593087,3124.7,3123.2,0.16017]
[1767372989136,0.00345876,3124.7,3123.1,7.44268396]
[1767372989346,0.00345876,3124.7,3123.3,4.20551609]
[1767372989638,0.23247211,3125.2,3123.9,0.16014]
[1767372990239,0.23089346,3126.0,3123.9,4.384]
[1767372990439,0.23089346,3126.0,3124.6,0.00479885]
[1767372990743,0.23367943,3126.0,3124.6,0.00479885]
[1767372990929,0.39370943,3126.0,3124.6,0.00479885]
[1767372991135,0.23089346,3125.9,3124.6,0.00479885]
[1767372991637,5.317,3128.6,3124.6,0.00479885]
[1767372991638,0.23089346,3128.3,3125.9,1.21766589]
[1767372991943,1.21766589,3129.3,3126.8,0.00479885]
[1767372992137,40.8,3129.7,3126.0,4.22461791]
[1767372992138,1.37758589,3128.2,3126.0,4.22461791]
[1767372992335,1.21766589,3127.7,3125.9,4.384]
[1767372992645,0.00366758,3127.7,3125.9,4.3867535]
[1767372993339,0.00479885,3127.1,3126.5,0.00479885]
[1767372994629,0.23089346,3127.0,3124.7,0.1601]
[1767372994941,0.23089346,3127.0,3124.7,4.41000176]
[1767372995144,0.23089346,3127.0,3124.8,7.584]
[1767372995443,0.23089346,3126.9,3124.9,7.584]
[1767372995636,0.23089346,3126.9,3125.6,0.00479885]
[1767372998244,0.00479885,3127.1,3125.6,0.00479885]
[1767372998644,0.23569231,3127.1,3125.6,0.00479885]
[1767373001545,0.23089346,3126.7,3125.6,0.00479885]
[1767373003648,0.16,3126.6,3124.9,0.0040082]
[1767373003849,0.23089346,3126.5,3124.9,4.3850082]
[1767373004354,0.23089346,3127.0,3124.9,4.61511322]
[1767373004549,0.23089346,3127.0,3125.0,0.16008]
[1767373004756,0.23089346,3127.0,3125.7,0.00479885]
[1767373007961,0.16477885,3127.1,3125.7,0.00479885]
[1767373008252,0.00479885,3127.1,3125.7,0.00479885]
[1767373009252,0.00479885,3127.1,3125.9,0.16004]
[1767373009648,0.00479885,3127.1,3126.0,0.16003]
[1767373009848,0.00366758,3127.7,3126.2,0.16002]
[1767373010659,0.00366758,3127.7,3126.3,4.38]
[1767373010856,0.00479885,3127.3,3126.2,0.16002]
[1767373011064,0.00479885,3127.3,3126.3,4.38]
[1767373011261,0.00366758,3127.7,3126.3,4.54001]
[1767373011860,0.23089346,3128.6,3126.5,0.23010502]
[1767373012058,0.23089346,3128.6,3126.8,0.15999]
[1767373012359,0.00479885,3128.0,3127.4,0.00479885]
[1767373012760,0.23089346,3128.6,3127.4,0.00479885]
[1767373012958,0.00385057,3128.6,3127.4,0.00889117]
[1767373013660,0.23089346,3129.2,3127.4,0.00889117]
[1767373013863,0.23089346,3129.2,3127.6,0.15995]
[1767373014253,0.23089346,3129.2,3127.7,6.993]
[1767373014451,0.2335431,3129.2,3127.6,0.15995]
[1767373014654,0.2335431,3129.2,3127.7,7.58]
[1767373015557,0.2335431,3129.2,3127.6,0.15995]
[1767373015763,0.00264964,3129.2,3127.7,7.579]
[1767373015962,0.00264964,3129.2,3127.6,0.15995]
[1767373016164,0.00264964,3129.2,3127.7,7.579]
[1767373017465,0.00264964,3129.2,3127.8,4.38]
[1767373017666,0.00264964,3129.2,3127.8,7.579]
[1767373017866,0.2335431,3129.2,3127.9,4.38]
[1767373018461,0.00264964,3129.2,3128.0,0.23010502]
[1767373018662,0.23089346,3130.2,3128.0,4.48016424]
[1767373018853,0.15983,3130.0,3127.7,3.199]
[1767373019057,0.23089346,3129.8,3127.8,4.38]
[1767373019252,0.39073346,3129.8,3127.8,4.38]
[1767373019459,1.21766589,3130.3,3127.5,0.39005502]
[1767373019460,0.24220279,3129.6,3127.9,4.379]
[1767373019660,0.24563305,3129.6,3127.9,4.379]
[1767373019856,0.40548305,3129.6,3127.6,4.24644295]
[1767373020170,0.24220279,3129.5,3127.7,4.379]
[1767373020467,0.24220279,3129.5,3127.8,4.379]
[1767373020664,0.24220279,3129.5,3127.5,0.39005502]
[1767373020870,0.24220279,3129.5,3127.9,4.379]
[1767373021768,0.40205279,3129.5,3127.9,4.379]
[1767373021963,0.24220279,3129.4,3128.0,4.379]
[1767373022757,0.40207279,3129.1,3127.4,0.00889117]
[1767373022965,0.15988,3129.0,3127.5,2.424]
[1767373023364,0.15988,3129.0,3127.4,0.00889117]
[1767373023365,0.40208279,3129.0,3127.4,0.00889117]
[1767373023565,0.40209279,3128.8,3127.4,1.91789117]
[1767373024070,0.24220279,3128.7,3127.4,0.00889117]
[1767373024670,0.40209279,3128.7,3127.4,0.00889117]
[1767373024864,0.40211279,3128.4,3127.4,0.00889117]
[1767373025276,0.40211279,3128.3,3126.4,0.16001]
[1767373025477,0.15992,3128.2,3126.5,4.378]
[1767373026081,0.15992,3128.2,3126.0,0.22957361]
[1767373026082,0.40213279,3127.9,3126.0,0.22957361]
[1767373026286,0.00479885,3127.3,3126.6,0.00479885]
[1767373026583,0.00748634,3127.3,3126.6,0.00479885]
[1767373027380,0.00748634,3127.3,3126.0,0.00313347]
[1767373028081,0.15992,3128.2,3126.2,0.22957361]
[1767373028481,0.15992,3128.2,3126.3,12.02099347]
[1767373028784,0.24220279,3128.1,3126.2,4.21541986]
[1767373029086,0.00479885,3127.5,3126.8,0.00479885]
[1767373030182,0.00237241,3128.1,3126.8,0.00479885]
[1767373030378,0.00237241,3128.1,3126.9,4.10582993]
[1767373030786,0.00237241,3128.1,3127.0,4.378]
[1767373032185,0.24220279,3129.4,3127.5,0.22957361]
[1767373032387,0.24220279,3129.4,3128.1,0.00479885]
[1767373032991,0.00377612,3129.4,3128.1,0.00479885]
[1767373034981,0.00377612,3129.4,3128.1,0.23437246]
[1767373035182,0.00377612,3129.4,3128.2,4.32616081]
[1767373035493,0.15982,3130.1,3128.3,0.22957361]
[1767373035789,0.15979,3130.8,3128.8,0.38946361]
[1767373035982,0.15979,3130.8,3129.5,0.00479885]
[1767373036185,0.24220279,3130.7,3129.5,0.00479885]
[1767373036388,0.24604104,3130.7,3129.5,0.00479885]
[1767373036595,0.24220279,3130.3,3128.2,0.23191245]
[1767373036792,0.40203279,3130.1,3128.2,0.00233884]
[1767373037095,0.24220279,3130.0,3128.2,0.00233884]
[1767373037391,0.24220279,3129.9,3128.2,0.00233884]
[1767373037694,0.00479885,3129.4,3128.7,0.00479885]
[1767373038889,0.24220279,3129.3,3128.2,0.00233884]
[1767373039091,0.40206279,3129.3,3128.2,0.00233884]
[1767373039396,0.24220279,3129.2,3127.2,0.22957361]
[1767373039694,0.24220279,3129.2,3127.3,4.20472242]
[1767373039895,0.24220279,3129.2,3127.9,0.00479885]
[1767373040300,0.24220279,3129.2,3127.9,0.00787831]
[1767373040688,0.40207279,3129.2,3127.9,0.00787831]
[1767373045901,0.24220279,3129.1,3127.9,0.00787831]
[1767373047093,0.15987,3129.2,3127.9,0.00787831]
[1767373048697,0.24385009,3129.1,3127.9,0.00787831]
[1767373050092,0.40372009,3129.1,3127.9,0.00787831]
[1767373050299,0.25293479,3128.8,3127.9,0.00787831]
[1767373051796,0.15987,3129.2,3127.9,0.00787831]
[1767373052201,0.25293479,3129.3,3127.9,0.00787831]
[1767373052401,0.00479885,3129.4,3127.9,0.00787831]
[1767373052402,0.00479885,3129.4,3127.9,0.25853222]
[1767373052596,0.00479885,3129.4,3128.1,0.15992]
[1767373052998,0.00479885,3129.4,3128.2,4.34291483]
[1767373054401,0.00479885,3129.4,3128.2,4.59356874]
[1767373054700,0.00479885,3129.4,3128.3,0.15991]
[1767373055707,0.25293479,3130.4,3128.5,0.1599]
[1767373055898,0.25293479,3130.4,3128.7,0.15989]
[1767373056206,0.25293479,3130.4,3128.8,0.15989]
[1767373056399,0.00383825,3130.7,3128.9,0.41053391]
[1767373056907,0.00383825,3130.7,3129.5,0.00479885]
[1767373059396,0.25677304,3130.7,3129.5,0.00479885]
[1767373059713,0.25677304,3130.7,3128.5,4.379]
[1767373060102,0.25677304,3130.7,3128.5,4.62965391]
[1767373060103,0.15981,3130.4,3128.5,4.62965391]
[1767373060306,0.25293479,3130.3,3128.5,4.62965391]
[1767373060506,0.25293479,3130.3,3128.5,0.25065391]
[1767373060707,0.00479885,3129.7,3129.1,0.00479885]
[1767373061706,0.00383825,3130.7,3129.1,0.00479885]
[1767373062207,0.41273479,3130.5,3129.1,0.00479885]
[1767373062406,0.25293479,3130.4,3129.1,0.00479885]
[1767373063407,0.25293479,3130.3,3129.1,0.00479885]
[1767373063707,0.41275479,3130.2,3129.1,0.00479885]
[1767373064007,0.25293479,3130.1,3129.1,0.00479885]
[1767373064804,0.25293479,3130.1,3128.0,3.02629728]
[1767373064805,0.25773364,3129.9,3128.0,3.02629728]
[1767373065006,0.25773364,3129.9,3128.1,4.378]
[1767373065305,0.25773364,3129.9,3128.0,2.77564337]
[1767373065509,0.25293479,3129.6,3127.9,0.00307946]
[1767373065809,0.15984,3129.7,3128.4,0.00479885]
[1767373066405,0.00479885,3129.9,3128.4,0.00479885]
[1767373069509,0.00479885,3129.9,3128.6,0.25065391]
[1767373070014,0.00479885,3129.9,3128.7,8.69224337]
[1767373070211,0.00479885,3129.9,3128.8,0.25065391]
[1767373070608,0.00383825,3130.7,3129.0,0.25065391]
[1767373070807,0.00383825,3130.7,3129.1,0.25065391]
[1767373071007,0.00383825,3130.7,3129.1,4.09384992]
[1767373071312,0.00383825,3130.7,3129.4,0.41050391]
[1767373072016,0.15976,3131.3,3129.4,0.41050391]
[1767373072209,0.25293479,3131.6,3130.0,0.00479885]
[1767373072816,0.25667428,3131.6,3130.0,0.00479885]
[1767373074314,0.00373949,3131.6,3130.1,0.15982]
[1767373074616,0.00373949,3131.6,3130.1,0.16211378]
[1767373075017,0.00373949,3131.6,3130.1,4.54311378]
[1767373079529,0.25477366,3131.6,3130.1,0.16211378]
[1767373079820,0.25477366,3131.6,3130.1,0.00229378]
[1767373080814,0.41452366,3131.6,3130.1,0.00229378]
[1767373081016,0.25103417,3131.5,3130.1,0.00229378]
[1767373081220,0.25103417,3131.4,3130.1,0.00229378]
[1767373081420,0.25103417,3131.3,3130.1,0.00229378]
[1767373081832,0.00373949,3131.6,3130.1,0.00229378]
[1767373082022,0.25477366,3131.6,3130.1,0.00229378]
[1767373082622,0.25103417,3131.3,3130.1,0.00229378]
[1767373083228,0.25103417,3131.3,3129.2,0.15987]
[1767373084024,0.25103417,3130.7,3128.6,0.15989]
[1767373084331,0.00477306,3130.0,3129.3,0.00479111]
[1767373086026,0.25103417,3131.3,3129.3,0.00479111]
[1767373086227,0.25103417,3131.3,3129.6,0.15985]
[1767373086530,3.195,3131.7,3129.7,0.15984]
[1767373086730,0.25477366,3131.6,3129.7,0.15984]
[1767373088228,0.25477366,3131.6,3129.3,0.00479111]
[1767373088229,0.25103417,3131.3,3129.3,0.00479111]
[1767373088424,0.25103417,3131.3,3129.4,4.382]
[1767373089532,0.41079417,3131.3,3129.3,0.00479111]
[1767373089727,0.41079417,3131.3,3129.4,4.382]
[1767373090032,0.41079417,3131.3,3129.4,4.6209807]
[1767373090332,0.15976,3131.3,3129.6,0.2389807]
[1767373090934,0.25103417,3131.2,3129.5,4.54285]
[1767373092730,0.25103417,3131.2,3129.5,0.15985]
[1767373092934,0.25103417,3130.6,3129.3,0.00479111]
[1767373093136,0.41084417,3130.4,3129.3,0.00479111]
[1767373094738,0.25103417,3130.4,3129.3,0.00479111]
[1767373094926,0.41081417,3130.9,3129.3,0.00479111]
[1767373095132,0.15979,3130.8,3129.3,0.00479111]
[1767373095327,0.00373949,3131.6,3129.3,0.00479111]
[1767373095328,0.41082417,3130.7,3129.3,0.00479111]
[1767373095534,0.41083417,3130.6,3129.3,0.00479111]
[1767373095731,0.41084417,3130.3,3129.3,0.00479111]
[1767373095935,0.25103417,3130.2,3129.3,0.00479111]
[1767373099451,0.25103417,3130.8,3129.3,0.00479111]
[1767373100039,0.15978,3130.9,3129.3,0.00479111]
[1767373100238,0.25103417,3131.3,3129.3,0.24377181]
[1767373100836,0.25103417,3131.3,3129.5,0.15985]
[1767373101031,0.25103417,3131.3,3129.6,0.3988207]
[1767373101239,0.00373949,3131.6,3129.7,0.2389807]
[1767373101434,0.00373949,3131.6,3130.0,0.15983]
[1767373102744,0.00373949,3131.6,3130.1,4.384]
[1767373104145,0.00373949,3131.6,3130.0,0.15983]
[1767373104345,0.00373949,3131.6,3130.1,4.385]
[1767373104644,0.25477366,3131.6,3130.0,0.15983]
[1767373104846,0.25477366,3131.6,3130.0,4.385]
[1767373105441,0.25477366,3131.6,3129.8,2.77564337]
[1767373105648,0.25477366,3131.6,3129.9,4.386]
[1767373105947,0.25477366,3131.6,3130.0,4.386]
[1767373108650,0.00373949,3131.6,3130.0,4.63299681]
[1767373109949,0.00373949,3131.6,3130.1,4.38754548]
[1767373110149,0.00373949,3131.6,3130.2,0.2499908]
[1767373110449,0.00373949,3131.6,3130.3,4.38754548]
[1767373110650,0.00373949,3131.6,3130.4,0.2499908]
[1767373110950,0.25970109,3132.7,3130.8,0.15978]
[1767373111143,0.25970109,3132.7,3131.4,0.00479111]
[1767373111652,0.25970109,3132.7,3131.5,4.391]
[1767373111852,0.26312368,3132.7,3131.5,0.00405415]
[1767373112345,0.42281368,3132.7,3131.5,0.00405415]
[1767373112541,0.25970109,3132.5,3131.5,0.00405415]
[1767373112738,0.25970109,3132.5,3131.4,0.00479111]
[1767373113751,0.25970109,3132.5,3131.4,0.00801722]
[1767373117456,0.00342259,3132.7,3131.4,0.00801722]
[1767373118859,0.00342259,3132.7,3131.4,0.16777722]
[1767373119162,0.25970109,3133.0,3131.5,1.37158773]
[1767373119454,0.7259328,3133.3,3131.6,0.15974]
[1767373119653,0.7259328,3133.3,3131.7,4.389]
[1767373119867,0.98563389,3133.3,3131.7,4.11682305]
[1767373120068,0.25970109,3133.2,3131.7,4.389]
[1767373120369,0.25970109,3133.2,3131.6,0.15974]
[1767373120370,0.26318625,3133.2,3131.6,0.15974]
[1767373120572,0.00348516,3133.2,3131.7,4.389]
[1767373120774,0.7259328,3133.3,3132.1,1.21183773]
[1767373121270,0.25867269,3133.3,3132.1,1.21183773]
[1767373121463,0.25970109,3134.1,3132.6,1.37152773]
[1767373121665,0.15956,3135.2,3133.0,0.00479111]
[1767373121869,0.25970109,3135.1,3133.0,0.00479111]
[1767373122274,0.25970109,3134.7,3133.1,4.07763221]
[1767373122470,0.25970109,3134.7,3133.0,0.00479111]
[1767373122874,0.15962,3134.1,3133.0,0.00479111]
[1767373123171,0.25970109,3133.8,3132.2,2.773]
[1767373123367,0.25970109,3133.8,3132.3,4.389]
[1767373123865,0.15959,3134.6,3132.7,1.21183773]
[1767373124068,0.00479111,3134.0,3133.3,0.00479111]
[1767373125975,0.25970109,3133.9,3132.5,0.903]
[1767373126570,0.25970109,3133.9,3131.9,0.15973]
[1767373126872,0.25970109,3133.8,3132.6,0.00479111]
[1767373128573,0.25970109,3133.7,3132.6,0.00479111]
[1767373129861,0.25970109,3133.6,3132.6,0.00479111]
[1767373130066,0.25970109,3133.3,3131.9,4.387]
[1767373130377,0.25970109,3133.3,3131.3,1.21183773]
[1767373130671,0.25970109,3133.3,3131.8,4.387]
[1767373131069,0.25970109,3133.3,3132.2,0.00479111]
[1767373131466,0.25970109,3133.8,3132.2,0.00479111]
[1767373132368,0.41933109,3133.8,3132.2,0.00479111]
[1767373132576,0.00479111,3134.0,3132.2,0.00479111]
[1767373132577,0.41935109,3133.6,3132.2,0.00479111]
[1767373132769,0.25970109,3133.5,3132.2,0.00479111]
[1767373133677,0.41935109,3133.5,3132.2,0.00479111]
[1767373133878,0.25970109,3133.4,3132.2,0.00479111]
[1767373134068,0.25970109,3133.3,3132.2,0.00479111]
[1767373135477,0.15965,3133.4,3132.2,0.00479111]
[1767373135773,0.25970109,3133.8,3132.2,0.00479111]
[1767373135975,0.25970109,3133.8,3132.3,4.386]
[1767373136378,0.25970109,3133.8,3132.2,0.00479111]
[1767373136878,0.41935109,3133.4,3132.2,0.00479111]
[1767373137074,0.41936109,3133.3,3132.2,0.00479111]
[1767373137276,0.25970109,3133.2,3132.2,0.00479111]
[1767373137774,0.25970109,3133.0,3132.2,0.00479111]
[1767373137974,0.42182441,3133.0,3131.4,4.38922611]
[1767373138181,0.25970109,3132.9,3131.4,4.38922611]
[1767373138976,0.00244332,3133.0,3131.8,0.00479111]
[1767373140276,0.00244332,3133.0,3131.8,0.16452111]
[1767373141275,0.26070651,3133.0,3131.8,0.00479111]
[1767373141980,0.00244332,3133.0,3131.8,0.00479111]
[1767373143390,0.26070651,3133.0,3131.8,0.00479111]
[1767373143692,0.25826319,3132.7,3131.8,0.00479111]
[1767373144087,0.00244332,3133.0,3131.8,0.00479111]
[1767373144486,0.26070651,3133.0,3131.8,0.00479111]
[1767373144887,0.25826319,3132.7,3131.4,0.00322611]
[1767373145594,0.00244332,3133.0,3131.4,0.00322611]
[1767373145894,0.00479111,3132.5,3131.9,0.00479111]
[1767373146393,0.00244332,3133.0,3131.9,0.00479111]
[1767373147297,0.25826319,3134.2,3131.9,0.26430206]
[1767373147496,0.00479111,3133.4,3132.2,0.15973]
[1767373147892,0.00479111,3133.4,3132.2,4.54673]
[1767373148098,0.00479111,3133.4,3132.2,0.15973]
[1767373148293,0.00759465,3133.4,3132.2,0.15973]
[1767373149302,0.25826319,3134.3,3132.3,4.34489291]
[1767373149899,0.25826319,3134.3,3132.3,4.50461291]
[1767373150295,0.00479111,3133.6,3132.4,5.59883773]
[1767373150801,0.00479111,3133.6,3132.4,1.21183773]
[1767373150996,0.00479111,3133.6,3132.5,4.388]
[1767373151900,0.26156356,3134.3,3132.8,0.1597]
[1767373152293,0.00330037,3134.3,3132.6,4.09634503]
[1767373152499,0.25826319,3135.3,3133.0,0.25951095]
[1767373152688,0.15959,3135.1,3132.9,1.21183773]
[1767373152995,0.2630543,3134.3,3132.9,4.39]
[1767373153607,0.00722899,3134.3,3133.0,4.31438859]
[1767373153789,0.25826319,3135.0,3133.1,0.25951095]
[1767373154196,0.25826319,3135.0,3133.2,4.06029134]
[1767373154500,0.25826319,3135.0,3133.4,1.21183773]
[1767373154700,0.00479111,3134.5,3133.9,0.00479111]
[1767373154899,0.00316068,3135.0,3133.9,0.00854582]
[1767373155994,0.00479111,3134.8,3133.9,0.00854582]
[1767373157403,0.25826319,3135.6,3133.9,1.38002355]